[Event "Titled Tuesday Blitz October 11 Late 2022"]
[White "Thomforde-Toates, Noah"]
[Black "Besedes, Danilo"]
[WhiteFideId "30951992"]
[BlackFideId "946796"]
[WhiteElo "2685"]
[BlackElo "2535"]
[Result "1-0"]
[Round "07"]
[TimeControl "180+1"]
[Date "2022.10.12"]
[WhiteClock "0:00:11"]
[BlackClock "0:00:01"]

1. e4 {[%clk 0:02:59]}  e6 {[%clk 0:02:59]} 2. d4 {[%clk 0:02:58]}  d5 {[%clk 0:02:59]} 3. Nd2 {[%clk 0:02:58]}  dxe4 {[%clk 0:02:59]} 4. Nxe4 {[%clk 0:02:58]}  Nd7 {[%clk 0:03:00]} 5. Nf3 {[%clk 0:02:58]}  Ngf6 {[%clk 0:03:00]} 6. Nxf6+ {[%clk 0:02:57]}  Nxf6 {[%clk 0:03:00]} 7. Bd3 {[%clk 0:02:57]}  c5 {[%clk 0:03:00]} 8. dxc5 {[%clk 0:02:51]}  Bxc5 {[%clk 0:02:57]} 9. O-O {[%clk 0:02:50]}  O-O {[%clk 0:02:53]} 10. Qe2 {[%clk 0:02:50]}  Qc7 {[%clk 0:02:51]} 11. Bg5 {[%clk 0:02:43]}  Be7 {[%clk 0:02:48]} 12. Rad1 {[%clk 0:02:40]}  Bd7 {[%clk 0:02:45]} 13. Bxf6 {[%clk 0:02:36]}  Bxf6 {[%clk 0:02:45]} 14. Bxh7+ {[%clk 0:02:36]}  Kxh7 {[%clk 0:02:44]} 15. Qd3+ {[%clk 0:02:36]}  Kg8 {[%clk 0:02:43]} 16. Qxd7 {[%clk 0:02:36]}  Qxc2 {[%clk 0:02:42]} 17. Qxb7 {[%clk 0:02:32]}  Qxb2 {[%clk 0:02:29]} 18. Qxb2 {[%clk 0:02:32]}  Bxb2 {[%clk 0:02:30]} 19. Rd7 {[%clk 0:02:32]}  Rfd8 {[%clk 0:02:22]} 20. Rfd1 {[%clk 0:02:30]}  Rxd7 {[%clk 0:02:12]} 21. Rxd7 {[%clk 0:02:28]}  Bf6 {[%clk 0:02:10]} 22. g4 {[%clk 0:02:28]}  g5 {[%clk 0:02:03]} 23. Kg2 {[%clk 0:02:25]}  Kg7 {[%clk 0:02:03]} 24. Rb7 {[%clk 0:02:24]}  Kg6 {[%clk 0:02:02]} 25. Kg3 {[%clk 0:02:23]}  a5 {[%clk 0:02:01]} 26. a4 {[%clk 0:02:22]}  Bc3 {[%clk 0:01:56]} 27. Rb5 {[%clk 0:02:22]}  f6 {[%clk 0:01:50]} 28. h4 {[%clk 0:02:20]}  gxh4+ {[%clk 0:01:47]} 29. Nxh4+ {[%clk 0:02:19]}  Kh6 {[%clk 0:01:42]} 30. Rb6 {[%clk 0:02:19]}  Re8 {[%clk 0:01:36]} 31. f4 {[%clk 0:02:17]}  Be1+ {[%clk 0:01:29]} 32. Kh3 {[%clk 0:02:15]}  Bxh4 {[%clk 0:01:28]} 33. Kxh4 {[%clk 0:02:15]}  Kg6 {[%clk 0:01:23]} 34. Ra6 {[%clk 0:02:15]}  e5 {[%clk 0:01:08]} 35. f5+ {[%clk 0:02:03]}  Kg7 {[%clk 0:01:06]} 36. Ra7+ {[%clk 0:02:03]}  Kg8 {[%clk 0:00:53]} 37. g5 {[%clk 0:01:12]}  e4 {[%clk 0:00:47]} 38. gxf6 {[%clk 0:01:11]}  Rc8 {[%clk 0:00:33]} 39. Re7 {[%clk 0:01:06]}  Rc4 {[%clk 0:00:30]} 40. Kg5 {[%clk 0:01:03]}  Kf8 {[%clk 0:00:30]} 41. Kg6 {[%clk 0:00:23]}  e3 {[%clk 0:00:27]} 42. Rxe3 {[%clk 0:00:23]}  Rg4+ {[%clk 0:00:23]} 43. Kh5 {[%clk 0:00:22]}  Rxa4 {[%clk 0:00:24]} 44. Kg5 {[%clk 0:00:22]}  Ra1 {[%clk 0:00:20]} 45. Re7 {[%clk 0:00:22]}  a4 {[%clk 0:00:20]} 46. Ra7 {[%clk 0:00:20]}  a3 {[%clk 0:00:20]} 47. f7 {[%clk 0:00:20]}  Kg7 {[%clk 0:00:14]} 48. f8=Q+ {[%clk 0:00:18]}  Kxf8 {[%clk 0:00:14]} 49. Kf6 {[%clk 0:00:18]}  Ke8 {[%clk 0:00:12]} 50. Ra8+ {[%clk 0:00:18]}  Kd7 {[%clk 0:00:12]} 51. Kf7 {[%clk 0:00:18]}  a2 {[%clk 0:00:12]} 52. f6 {[%clk 0:00:18]}  Kd6 {[%clk 0:00:10]} 53. Ra5 {[%clk 0:00:18]}  Kd7 {[%clk 0:00:10]} 54. Rd5+ {[%clk 0:00:18]}  Kc6 {[%clk 0:00:10]} 55. Rd2 {[%clk 0:00:19]}  Kc7 {[%clk 0:00:09]} 56. Rf2 {[%clk 0:00:15]}  Kd7 {[%clk 0:00:08]} 57. Kf8 {[%clk 0:00:15]}  Ke6 {[%clk 0:00:06]} 58. f7 {[%clk 0:00:15]}  Kd6 {[%clk 0:00:02]} 59. Rd2+ {[%clk 0:00:11]}  Ke6 {[%clk 0:00:01]} 60. Ke8 {[%clk 0:00:11]} 1-0


[Site "https://www.chess.com"]

[Event "Titled Tuesday Blitz October 11 Late 2022"]
[White "Urazayev, Arystanbek"]
[Black "Pinheiro, Iung Alicio de O."]
[WhiteFideId "13709810"]
[BlackFideId "2104350"]
[WhiteElo "2441"]
[BlackElo "2283"]
[Result "1-0"]
[Round "07"]
[TimeControl "180+1"]
[Date "2022.10.11"]
[WhiteClock "0:00:36"]
[BlackClock "0:00:04"]

1. d4 {[%clk 0:03:00]}  Nf6 {[%clk 0:02:59]} 2. c4 {[%clk 0:03:01]}  Nc6 {[%clk 0:02:57]} 3. e3 {[%clk 0:03:00]}  e5 {[%clk 0:02:55]} 4. Nc3 {[%clk 0:03:01]}  Bb4 {[%clk 0:02:53]} 5. Nf3 {[%clk 0:02:59]}  exd4 {[%clk 0:02:48]} 6. exd4 {[%clk 0:02:59]}  d5 {[%clk 0:02:48]} 7. Bd3 {[%clk 0:02:58]}  O-O {[%clk 0:02:48]} 8. O-O {[%clk 0:02:58]}  Bg4 {[%clk 0:02:42]} 9. Be3 {[%clk 0:02:34]}  dxc4 {[%clk 0:02:28]} 10. Bxc4 {[%clk 0:02:35]}  Bd6 {[%clk 0:02:27]} 11. h3 {[%clk 0:02:29]}  Bh5 {[%clk 0:02:26]} 12. d5 {[%clk 0:02:29]}  Ne5 {[%clk 0:01:57]} 13. Be2 {[%clk 0:02:28]}  Re8 {[%clk 0:01:41]} 14. Nxe5 {[%clk 0:02:23]}  Bxe2 {[%clk 0:01:41]} 15. Nxf7 {[%clk 0:02:09]}  Bxd1 {[%clk 0:01:09]} 16. Nxd8 {[%clk 0:02:09]}  Bh5 {[%clk 0:01:01]} 17. Nxb7 {[%clk 0:01:57]}  Be5 {[%clk 0:01:01]} 18. Nc5 {[%clk 0:01:47]}  Rab8 {[%clk 0:00:57]} 19. N5a4 {[%clk 0:01:39]}  Red8 {[%clk 0:00:47]} 20. Rfe1 {[%clk 0:01:28]}  Bxc3 {[%clk 0:00:40]} 21. Nxc3 {[%clk 0:01:29]}  Rxb2 {[%clk 0:00:37]} 22. Bxa7 {[%clk 0:01:15]}  Nxd5 {[%clk 0:00:32]} 23. Nxd5 {[%clk 0:01:15]}  Rxd5 {[%clk 0:00:32]} 24. Re7 {[%clk 0:01:06]}  Ra5 {[%clk 0:00:29]} 25. Rxg7+ {[%clk 0:01:01]}  Kf8 {[%clk 0:00:18]} 26. Rxc7 {[%clk 0:00:54]}  Raxa2 {[%clk 0:00:15]} 27. Rxa2 {[%clk 0:00:54]}  Rxa2 {[%clk 0:00:16]} 28. Rxh7 {[%clk 0:00:55]}  Bg6 {[%clk 0:00:16]} 29. Rc7 {[%clk 0:00:54]}  Ke8 {[%clk 0:00:14]} 30. Be3 {[%clk 0:00:53]}  Kd8 {[%clk 0:00:13]} 31. Rg7 {[%clk 0:00:53]}  Be4 {[%clk 0:00:13]} 32. g4 {[%clk 0:00:52]}  Ra1+ {[%clk 0:00:12]} 33. Kh2 {[%clk 0:00:53]}  Rh1+ {[%clk 0:00:12]} 34. Kg3 {[%clk 0:00:53]}  Bd3 {[%clk 0:00:13]} 35. h4 {[%clk 0:00:53]}  Be2 {[%clk 0:00:13]} 36. Kf4 {[%clk 0:00:51]}  Ke8 {[%clk 0:00:13]} 37. h5 {[%clk 0:00:51]}  Kf8 {[%clk 0:00:13]} 38. Ra7 {[%clk 0:00:49]}  Rg1 {[%clk 0:00:11]} 39. f3 {[%clk 0:00:44]}  Rf1 {[%clk 0:00:11]} 40. Bc5+ {[%clk 0:00:44]}  Kg8 {[%clk 0:00:11]} 41. Ra3 {[%clk 0:00:44]}  Rc1 {[%clk 0:00:07]} 42. Bd6 {[%clk 0:00:38]}  Rd1 {[%clk 0:00:06]} 43. Be5 {[%clk 0:00:38]}  Rf1 {[%clk 0:00:06]} 44. g5 {[%clk 0:00:36]}  Rh1 {[%clk 0:00:04]} 45. g6 {[%clk 0:00:36]} 1-0


[Site "https://www.chess.com"]

[Event "Titled Tuesday Blitz October 11 Late 2022"]
[White "Urbina Perez, Juan Antonio"]
[Black "Barash, Anton"]
[WhiteFideId "2217368"]
[BlackFideId "30935229"]
[WhiteElo "2197"]
[BlackElo "2287"]
[Result "1-0"]
[Round "07"]
[TimeControl "180+1"]
[Date "2022.10.12"]
[WhiteClock "0:00:33"]
[BlackClock "0:00:03"]

1. Nf3 {[%clk 0:02:57]}  Nf6 {[%clk 0:02:59]} 2. e3 {[%clk 0:02:55]}  g6 {[%clk 0:02:59]} 3. b3 {[%clk 0:02:55]}  Bg7 {[%clk 0:02:59]} 4. Bb2 {[%clk 0:02:56]}  O-O {[%clk 0:03:00]} 5. c4 {[%clk 0:02:55]}  d6 {[%clk 0:03:00]} 6. h4 {[%clk 0:02:55]}  Bg4 {[%clk 0:02:56]} 7. Be2 {[%clk 0:02:52]}  e5 {[%clk 0:02:56]} 8. Ng5 {[%clk 0:02:49]}  Bxe2 {[%clk 0:02:55]} 9. Qxe2 {[%clk 0:02:50]}  h5 {[%clk 0:02:53]} 10. Nc3 {[%clk 0:02:46]}  Nc6 {[%clk 0:02:46]} 11. O-O-O {[%clk 0:02:44]}  a5 {[%clk 0:02:43]} 12. f3 {[%clk 0:02:43]}  Qd7 {[%clk 0:02:38]} 13. g4 {[%clk 0:02:39]}  hxg4 {[%clk 0:02:27]} 14. h5 {[%clk 0:02:40]}  gxf3 {[%clk 0:02:28]} 15. Qxf3 {[%clk 0:02:36]}  Qg4 {[%clk 0:02:26]} 16. Qxg4 {[%clk 0:02:25]}  Nxg4 {[%clk 0:02:27]} 17. h6 {[%clk 0:02:23]}  Bxh6 {[%clk 0:02:04]} 18. Rdg1 {[%clk 0:02:07]}  Bxg5 {[%clk 0:02:03]} 19. Rxg4 {[%clk 0:02:06]}  Bf6 {[%clk 0:02:02]} 20. Nd5 {[%clk 0:02:05]}  Kg7 {[%clk 0:01:39]} 21. Nxc7 {[%clk 0:01:51]}  Rh8 {[%clk 0:01:35]} 22. Rf1 {[%clk 0:01:48]}  Rac8 {[%clk 0:01:30]} 23. Nd5 {[%clk 0:01:47]}  Bd8 {[%clk 0:01:30]} 24. d4 {[%clk 0:01:44]}  f6 {[%clk 0:01:24]} 25. c5 {[%clk 0:01:30]}  Nb4 {[%clk 0:01:11]} 26. Nxb4 {[%clk 0:01:25]}  axb4 {[%clk 0:01:11]} 27. Kb1 {[%clk 0:01:24]}  exd4 {[%clk 0:00:46]} 28. exd4 {[%clk 0:01:15]}  Be7 {[%clk 0:00:34]} 29. cxd6 {[%clk 0:01:10]}  Bxd6 {[%clk 0:00:33]} 30. d5 {[%clk 0:01:11]}  Be5 {[%clk 0:00:29]} 31. Bxe5 {[%clk 0:01:11]}  fxe5 {[%clk 0:00:29]} 32. Rxb4 {[%clk 0:01:10]}  Rc7 {[%clk 0:00:25]} 33. Rb6 {[%clk 0:01:04]}  Rh2 {[%clk 0:00:22]} 34. Rc1 {[%clk 0:01:00]}  Rd7 {[%clk 0:00:15]} 35. d6 {[%clk 0:00:58]}  Rd2 {[%clk 0:00:14]} 36. Rc7 {[%clk 0:00:52]}  Rxd6 {[%clk 0:00:15]} 37. Rbxb7 {[%clk 0:00:52]}  Rxc7 {[%clk 0:00:12]} 38. Rxc7+ {[%clk 0:00:53]}  Kf6 {[%clk 0:00:13]} 39. a4 {[%clk 0:00:51]}  g5 {[%clk 0:00:13]} 40. Kc2 {[%clk 0:00:46]}  g4 {[%clk 0:00:13]} 41. a5 {[%clk 0:00:42]}  g3 {[%clk 0:00:12]} 42. Rc3 {[%clk 0:00:42]}  Rd5 {[%clk 0:00:02]} 43. b4 {[%clk 0:00:38]}  Rd4 {[%clk 0:00:03]} 44. Kb3 {[%clk 0:00:36]}  g2 {[%clk 0:00:03]} 45. Rg3 {[%clk 0:00:36]}  Rd3+ {[%clk 0:00:04]} 46. Rxd3 {[%clk 0:00:33]}  g1=Q {[%clk 0:00:04]} 47. Rc3 {[%clk 0:00:30]}  Qb1+ {[%clk 0:00:04]} 48. Kc4 {[%clk 0:00:30]}  e4 {[%clk 0:00:04]} 49. Kb5 {[%clk 0:00:30]}  Qe1 {[%clk 0:00:04]} 50. Rc6+ {[%clk 0:00:31]}  Ke5 {[%clk 0:00:04]} 51. a6 {[%clk 0:00:32]}  Qf1+ {[%clk 0:00:03]} 52. Kb6 {[%clk 0:00:31]}  e3 {[%clk 0:00:04]} 53. Rc5+ {[%clk 0:00:32]}  Kd4 {[%clk 0:00:03]} 54. a7 {[%clk 0:00:33]}  Qa1 {[%clk 0:00:03]} 55. Ra5 {[%clk 0:00:33]} 1-0


[Site "https://www.chess.com"]

[Event "Titled Tuesday Blitz October 11 Late 2022"]
[White "Vivas Zamora, Fabian Ernesto"]
[Black "Preotu, Razvan"]
[WhiteFideId "3902480"]
[BlackFideId "2613280"]
[WhiteElo "2236"]
[BlackElo "2407"]
[Result "0-1"]
[Round "07"]
[TimeControl "180+1"]
[Date "2022.10.12"]
[WhiteClock "0:00:01"]
[BlackClock "0:01:03"]

1. e4 {[%clk 0:03:00]}  c5 {[%clk 0:02:59]} 2. Nc3 {[%clk 0:02:57]}  d6 {[%clk 0:02:58]} 3. d4 {[%clk 0:02:57]}  cxd4 {[%clk 0:02:59]} 4. Qxd4 {[%clk 0:02:57]}  Nc6 {[%clk 0:02:59]} 5. Qd2 {[%clk 0:02:58]}  g6 {[%clk 0:02:59]} 6. b3 {[%clk 0:02:57]}  Bh6 {[%clk 0:02:59]} 7. f4 {[%clk 0:02:57]}  Nf6 {[%clk 0:02:59]} 8. Bb2 {[%clk 0:02:57]}  O-O {[%clk 0:02:59]} 9. O-O-O {[%clk 0:02:56]}  e5 {[%clk 0:02:57]} 10. g3 {[%clk 0:02:55]}  Re8 {[%clk 0:02:57]} 11. Kb1 {[%clk 0:02:42]}  Nd4 {[%clk 0:02:51]} 12. Qf2 {[%clk 0:02:37]}  Bg7 {[%clk 0:01:47]} 13. Nge2 {[%clk 0:02:11]}  Bg4 {[%clk 0:01:45]} 14. Bg2 {[%clk 0:01:56]}  Rc8 {[%clk 0:01:41]} 15. Rd2 {[%clk 0:01:28]}  Qa5 {[%clk 0:01:19]} 16. Rhd1 {[%clk 0:00:45]}  b5 {[%clk 0:01:06]} 17. h3 {[%clk 0:00:41]}  b4 {[%clk 0:01:06]} 18. hxg4 {[%clk 0:00:39]}  bxc3 {[%clk 0:01:05]} 19. Bxc3 {[%clk 0:00:27]}  Rxc3 {[%clk 0:01:06]} 20. Nxc3 {[%clk 0:00:28]}  Qxc3 {[%clk 0:01:06]} 21. Rd3 {[%clk 0:00:10]}  Nxg4 {[%clk 0:01:03]} 22. Qg1 {[%clk 0:00:01]}  Qxc2+ {[%clk 0:01:03]} 0-1


[Site "https://www.chess.com"]

[Event "Titled Tuesday Blitz October 11 Late 2022"]
[White "Wadsworth, Matthew J"]
[Black "Bilych, Olexiy"]
[WhiteFideId "415804"]
[BlackFideId "14156504"]
[WhiteElo "2367"]
[BlackElo "2320"]
[Result "1-0"]
[Round "07"]
[TimeControl "180+1"]
[Date "2022.10.11"]
[WhiteClock "0:00:14"]
[BlackClock "0:00:06"]

1. c4 {[%clk 0:03:00]}  e5 {[%clk 0:02:59]} 2. g3 {[%clk 0:03:01]}  Nf6 {[%clk 0:02:59]} 3. Bg2 {[%clk 0:03:01]}  d5 {[%clk 0:02:57]} 4. cxd5 {[%clk 0:03:00]}  Nxd5 {[%clk 0:02:58]} 5. Nc3 {[%clk 0:03:01]}  Nb6 {[%clk 0:02:58]} 6. Nf3 {[%clk 0:03:00]}  Nc6 {[%clk 0:02:58]} 7. O-O {[%clk 0:03:00]}  Be7 {[%clk 0:02:59]} 8. a3 {[%clk 0:03:01]}  O-O {[%clk 0:02:59]} 9. b4 {[%clk 0:03:01]}  Re8 {[%clk 0:02:53]} 10. d3 {[%clk 0:02:57]}  Nd4 {[%clk 0:02:44]} 11. Nd2 {[%clk 0:02:53]}  c6 {[%clk 0:02:40]} 12. e3 {[%clk 0:02:48]}  Nf5 {[%clk 0:02:31]} 13. Nf3 {[%clk 0:02:46]}  Bf8 {[%clk 0:02:24]} 14. Bb2 {[%clk 0:02:43]}  a5 {[%clk 0:02:17]} 15. b5 {[%clk 0:02:37]}  cxb5 {[%clk 0:02:10]} 16. Nxb5 {[%clk 0:02:38]}  Bd7 {[%clk 0:02:10]} 17. a4 {[%clk 0:02:36]}  f6 {[%clk 0:01:41]} 18. d4 {[%clk 0:02:33]}  e4 {[%clk 0:01:32]} 19. Nd2 {[%clk 0:02:30]}  Bxb5 {[%clk 0:01:32]} 20. axb5 {[%clk 0:02:30]}  Nd6 {[%clk 0:01:31]} 21. Ba3 {[%clk 0:02:20]}  f5 {[%clk 0:01:25]} 22. Qb3+ {[%clk 0:02:11]}  Kh8 {[%clk 0:01:24]} 23. Bc5 {[%clk 0:02:01]}  Nd7 {[%clk 0:00:58]} 24. b6 {[%clk 0:01:42]}  Nxc5 {[%clk 0:00:49]} 25. dxc5 {[%clk 0:01:41]}  Nc8 {[%clk 0:00:40]} 26. c6 {[%clk 0:01:26]}  Nxb6 {[%clk 0:00:29]} 27. cxb7 {[%clk 0:01:24]}  Ra7 {[%clk 0:00:27]} 28. Nc4 {[%clk 0:01:11]}  Nxc4 {[%clk 0:00:25]} 29. Qxc4 {[%clk 0:00:58]}  Rxb7 {[%clk 0:00:24]} 30. Rfd1 {[%clk 0:00:55]}  Qb6 {[%clk 0:00:13]} 31. Qd5 {[%clk 0:00:51]}  g6 {[%clk 0:00:11]} 32. Rxa5 {[%clk 0:00:44]}  Bg7 {[%clk 0:00:10]} 33. Bf1 {[%clk 0:00:41]}  Rbb8 {[%clk 0:00:07]} 34. Rb5 {[%clk 0:00:36]}  Qc7 {[%clk 0:00:05]} 35. Rc5 {[%clk 0:00:27]}  Qe7 {[%clk 0:00:04]} 36. Rdc1 {[%clk 0:00:24]}  Rbd8 {[%clk 0:00:04]} 37. Qa2 {[%clk 0:00:23]}  Ra8 {[%clk 0:00:04]} 38. Qc4 {[%clk 0:00:21]}  Rad8 {[%clk 0:00:03]} 39. Rc7 {[%clk 0:00:21]}  Rd7 {[%clk 0:00:04]} 40. Rc8 {[%clk 0:00:17]}  Rxc8 {[%clk 0:00:03]} 41. Qxc8+ {[%clk 0:00:16]}  Rd8 {[%clk 0:00:04]} 42. Qc7 {[%clk 0:00:15]}  Qxc7 {[%clk 0:00:03]} 43. Rxc7 {[%clk 0:00:16]}  h5 {[%clk 0:00:04]} 44. Kg2 {[%clk 0:00:15]}  Kh7 {[%clk 0:00:04]} 45. h3 {[%clk 0:00:16]}  Kh6 {[%clk 0:00:05]} 46. g4 {[%clk 0:00:15]}  hxg4 {[%clk 0:00:04]} 47. hxg4 {[%clk 0:00:15]}  fxg4 {[%clk 0:00:04]} 48. Be2 {[%clk 0:00:14]}  Kg5 {[%clk 0:00:04]} 49. Rxg7 {[%clk 0:00:13]}  Rd2 {[%clk 0:00:03]} 50. Bf1 {[%clk 0:00:13]}  Rb2 {[%clk 0:00:03]} 51. Rf7 {[%clk 0:00:13]}  Ra2 {[%clk 0:00:03]} 52. Rf4 {[%clk 0:00:13]}  Ra4 {[%clk 0:00:03]} 53. Be2 {[%clk 0:00:13]}  g3 {[%clk 0:00:02]} 54. Kxg3 {[%clk 0:00:13]}  Ra2 {[%clk 0:00:03]} 55. Rg4+ {[%clk 0:00:13]}  Kf5 {[%clk 0:00:03]} 56. Rf4+ {[%clk 0:00:13]}  Ke5 {[%clk 0:00:04]} 57. Bf1 {[%clk 0:00:13]}  g5 {[%clk 0:00:04]} 58. Rg4 {[%clk 0:00:13]}  Kf5 {[%clk 0:00:04]} 59. Bg2 {[%clk 0:00:13]}  Ra4 {[%clk 0:00:05]} 60. Rxe4 {[%clk 0:00:13]}  Rxe4 {[%clk 0:00:05]} 61. Bxe4+ {[%clk 0:00:14]}  Kxe4 {[%clk 0:00:06]} 62. Kg4 {[%clk 0:00:14]}  Kd3 {[%clk 0:00:05]} 63. Kxg5 {[%clk 0:00:14]}  Ke2 {[%clk 0:00:06]} 1-0


[Site "https://www.chess.com"]

[Event "Titled Tuesday Blitz October 11 Late 2022"]
[White "Yurovskykh, Oleksandr"]
[Black "Georgiadis, Ioannis"]
[WhiteFideId "14134020"]
[BlackFideId "4208900"]
[WhiteElo "2551"]
[BlackElo "2738"]
[Result "1/2-1/2"]
[Round "07"]
[TimeControl "180+1"]
[Date "2022.10.12"]
[WhiteClock "0:00:30"]
[BlackClock "0:00:59"]

1. d4 {[%clk 0:03:00]}  Nf6 {[%clk 0:02:59]} 2. Nf3 {[%clk 0:02:59]}  e6 {[%clk 0:02:59]} 3. Bf4 {[%clk 0:03:00]}  c5 {[%clk 0:02:58]} 4. c3 {[%clk 0:03:00]}  d5 {[%clk 0:02:58]} 5. e3 {[%clk 0:03:00]}  Nc6 {[%clk 0:02:58]} 6. Nbd2 {[%clk 0:03:00]}  cxd4 {[%clk 0:02:58]} 7. exd4 {[%clk 0:02:59]}  Nh5 {[%clk 0:02:58]} 8. Be3 {[%clk 0:02:57]}  Bd6 {[%clk 0:02:58]} 9. Ne5 {[%clk 0:02:54]}  g6 {[%clk 0:02:57]} 10. f4 {[%clk 0:02:44]}  O-O {[%clk 0:02:54]} 11. Be2 {[%clk 0:02:41]}  Ng7 {[%clk 0:02:54]} 12. O-O {[%clk 0:02:40]}  f6 {[%clk 0:02:53]} 13. Nd3 {[%clk 0:02:32]}  b6 {[%clk 0:02:49]} 14. g3 {[%clk 0:02:19]}  a5 {[%clk 0:02:47]} 15. a4 {[%clk 0:02:18]}  Ne7 {[%clk 0:02:36]} 16. Nf3 {[%clk 0:02:17]}  Ba6 {[%clk 0:02:30]} 17. Bf2 {[%clk 0:02:12]}  Qd7 {[%clk 0:02:21]} 18. Nc1 {[%clk 0:02:06]}  Bxe2 {[%clk 0:02:16]} 19. Qxe2 {[%clk 0:02:06]}  h5 {[%clk 0:02:15]} 20. Nd3 {[%clk 0:02:07]}  Rae8 {[%clk 0:02:10]} 21. Be3 {[%clk 0:01:54]}  Ngf5 {[%clk 0:02:08]} 22. Bd2 {[%clk 0:01:54]}  Nc6 {[%clk 0:02:08]} 23. Kg2 {[%clk 0:01:52]}  Re7 {[%clk 0:02:04]} 24. Rae1 {[%clk 0:01:47]}  Rfe8 {[%clk 0:02:04]} 25. b3 {[%clk 0:01:43]}  Bc7 {[%clk 0:01:58]} 26. Bc1 {[%clk 0:01:42]}  Nd6 {[%clk 0:01:58]} 27. Ba3 {[%clk 0:01:34]}  Rg7 {[%clk 0:01:52]} 28. Bxd6 {[%clk 0:01:34]}  Bxd6 {[%clk 0:01:53]} 29. h3 {[%clk 0:01:29]}  Nd8 {[%clk 0:01:50]} 30. g4 {[%clk 0:01:25]}  Qc7 {[%clk 0:01:47]} 31. Qd2 {[%clk 0:01:25]}  Nf7 {[%clk 0:01:43]} 32. g5 {[%clk 0:01:19]}  fxg5 {[%clk 0:01:41]} 33. fxg5 {[%clk 0:01:19]}  Kh7 {[%clk 0:01:35]} 34. Nfe5 {[%clk 0:01:15]}  Bxe5 {[%clk 0:01:31]} 35. Nxe5 {[%clk 0:01:16]}  Nd6 {[%clk 0:01:30]} 36. Qe3 {[%clk 0:00:53]}  Nf5 {[%clk 0:01:29]} 37. Qd3 {[%clk 0:00:53]}  Rc8 {[%clk 0:01:26]} 38. Rc1 {[%clk 0:00:53]}  Qb7 {[%clk 0:01:26]} 39. Rc2 {[%clk 0:00:50]}  Rgc7 {[%clk 0:01:26]} 40. Rfc1 {[%clk 0:00:49]}  Kg7 {[%clk 0:01:20]} 41. Kh2 {[%clk 0:00:44]}  Qa8 {[%clk 0:01:07]} 42. Rf1 {[%clk 0:00:31]}  Qb7 {[%clk 0:01:06]} 43. Rfc1 {[%clk 0:00:31]}  Qa8 {[%clk 0:01:05]} 44. Rf1 {[%clk 0:00:30]}  Qb7 {[%clk 0:00:59]} 45. Rfc1 {[%clk 0:00:30]} 1/2-1/2


[Site "https://www.chess.com"]

[Event "Titled Tuesday Blitz October 11 Late 2022"]
[White "Zaloznyy, Mike"]
[Black "Rosenberg, Evan S"]
[WhiteFideId "2023075"]
[BlackFideId "2019299"]
[WhiteElo "2126"]
[BlackElo "2342"]
[Result "0-1"]
[Round "07"]
[TimeControl "180+1"]
[Date "2022.10.12"]
[WhiteClock "0:00:05"]
[BlackClock "0:00:18"]

1. e4 {[%clk 0:02:58]}  e6 {[%clk 0:02:58]} 2. Qe2 {[%clk 0:02:57]}  e5 {[%clk 0:02:56]} 3. Nf3 {[%clk 0:02:55]}  Nc6 {[%clk 0:02:56]} 4. c3 {[%clk 0:02:55]}  Bc5 {[%clk 0:02:42]} 5. b4 {[%clk 0:02:50]}  Bd6 {[%clk 0:02:40]} 6. d4 {[%clk 0:02:48]}  exd4 {[%clk 0:02:34]} 7. b5 {[%clk 0:02:33]}  Ne5 {[%clk 0:02:26]} 8. Nxd4 {[%clk 0:02:23]}  Ne7 {[%clk 0:02:17]} 9. f4 {[%clk 0:02:18]}  N5g6 {[%clk 0:02:18]} 10. e5 {[%clk 0:02:16]}  Bc5 {[%clk 0:02:18]} 11. Nb3 {[%clk 0:02:06]}  d6 {[%clk 0:02:06]} 12. Nxc5 {[%clk 0:02:05]}  dxc5 {[%clk 0:02:06]} 13. Be3 {[%clk 0:02:03]}  b6 {[%clk 0:01:55]} 14. Qf3 {[%clk 0:02:02]}  Be6 {[%clk 0:01:44]} 15. c4 {[%clk 0:01:41]}  O-O {[%clk 0:01:39]} 16. Nc3 {[%clk 0:01:41]}  Nf5 {[%clk 0:01:38]} 17. Rd1 {[%clk 0:01:34]}  Nd4 {[%clk 0:01:33]} 18. Qf2 {[%clk 0:01:26]}  Bg4 {[%clk 0:01:18]} 19. Be2 {[%clk 0:01:22]}  Nc2+ {[%clk 0:01:13]} 20. Kf1 {[%clk 0:01:17]}  Nxe3+ {[%clk 0:01:07]} 21. Qxe3 {[%clk 0:01:17]}  Bxe2+ {[%clk 0:01:07]} 22. Kxe2 {[%clk 0:01:13]}  Qh4 {[%clk 0:01:07]} 23. g3 {[%clk 0:01:08]}  Qh3 {[%clk 0:01:04]} 24. Kf2 {[%clk 0:00:59]}  Rae8 {[%clk 0:00:58]} 25. Qf3 {[%clk 0:00:56]}  f6 {[%clk 0:00:51]} 26. exf6 {[%clk 0:00:50]}  Rxf6 {[%clk 0:00:50]} 27. Qd5+ {[%clk 0:00:25]}  Kh8 {[%clk 0:00:48]} 28. Qg2 {[%clk 0:00:21]}  Qf5 {[%clk 0:00:34]} 29. Rhe1 {[%clk 0:00:19]}  Qc2+ {[%clk 0:00:31]} 30. Kg1 {[%clk 0:00:14]}  Rxe1+ {[%clk 0:00:28]} 31. Rxe1 {[%clk 0:00:14]}  Qxc3 {[%clk 0:00:28]} 32. Re8+ {[%clk 0:00:14]}  Rf8 {[%clk 0:00:28]} 33. Qa8 {[%clk 0:00:15]}  Qf6 {[%clk 0:00:22]} 34. Rxf8+ {[%clk 0:00:14]}  Qxf8 {[%clk 0:00:22]} 35. Qxa7 {[%clk 0:00:15]}  Qd6 {[%clk 0:00:21]} 36. Qb8+ {[%clk 0:00:13]}  Nf8 {[%clk 0:00:21]} 37. Kg2 {[%clk 0:00:12]}  h5 {[%clk 0:00:21]} 38. Kh3 {[%clk 0:00:12]}  Kh7 {[%clk 0:00:21]} 39. Kh4 {[%clk 0:00:12]}  Qf6+ {[%clk 0:00:17]} 40. Kxh5 {[%clk 0:00:09]}  Ne6 {[%clk 0:00:17]} 41. Kg4 {[%clk 0:00:06]}  Qg6+ {[%clk 0:00:16]} 42. Kh3 {[%clk 0:00:05]}  Qh5+ {[%clk 0:00:15]} 43. Kg2 {[%clk 0:00:05]}  Qe2+ {[%clk 0:00:14]} 44. Kh3 {[%clk 0:00:05]}  Qf1+ {[%clk 0:00:14]} 45. Kg4 {[%clk 0:00:05]}  Nd4 {[%clk 0:00:13]} 46. Qxc7 {[%clk 0:00:04]}  Qf3+ {[%clk 0:00:14]} 47. Kg5 {[%clk 0:00:03]}  Ne6+ {[%clk 0:00:14]} 48. Kf5 {[%clk 0:00:03]}  Nxc7 {[%clk 0:00:14]} 49. Ke5 {[%clk 0:00:04]}  Qc3+ {[%clk 0:00:14]} 50. Kd6 {[%clk 0:00:05]}  Nxb5+ {[%clk 0:00:14]} 51. cxb5 {[%clk 0:00:04]}  Qd4+ {[%clk 0:00:15]} 52. Kc6 {[%clk 0:00:04]}  c4 {[%clk 0:00:16]} 53. a4 {[%clk 0:00:03]}  c3 {[%clk 0:00:16]} 54. a5 {[%clk 0:00:04]}  bxa5 {[%clk 0:00:17]} 55. b6 {[%clk 0:00:04]}  c2 {[%clk 0:00:17]} 56. b7 {[%clk 0:00:04]}  c1=Q+ {[%clk 0:00:18]} 57. Kb5 {[%clk 0:00:04]}  Qb4+ {[%clk 0:00:17]} 58. Ka6 {[%clk 0:00:05]}  Qc6+ {[%clk 0:00:17]} 59. Ka7 {[%clk 0:00:05]}  Qbxb7# {[%clk 0:00:18]} 0-1


[Site "https://www.chess.com"]